bitfinex/quotes_SOLUSD_20250621
["timestamp","ask_amount","ask_price","bid_price","bid_amount"]
[1750545604260,26.0,133.94,133.87,89.1]
[1750545604261,18.75318055,133.91,133.87,89.1]
[1750545604429,18.75318055,133.89,133.86,7.47049155]
[1750545604633,26.0,133.91,133.86,7.47049155]
[1750545604928,18.75318055,133.9,133.86,7.47049155]
[1750545605549,26.0,133.91,133.86,7.47049155]
[1750545605550,18.75318055,133.89,133.86,96.57049155]
[1750545605922,18.75318055,133.88,133.86,7.47049155]
[1750545606141,18.75318055,133.88,133.85,7.47089662]
[1750545606950,18.75318055,133.87,133.85,7.47089662]
[1750545607151,18.75318055,133.86,133.84,7.47144104]
[1750545607334,18.75318055,133.85,133.82,10.76]
[1750545607955,18.75318055,133.83,133.77,7.47551767]
[1750545608132,26.0,133.84,133.77,7.47551767]
[1750545608463,18.75318055,133.81,133.77,26.22869822]
[1750545608822,18.75318055,133.81,133.77,7.47551767]
[1750545609028,18.75318055,133.81,133.77,26.22869822]
[1750545609460,26.0,133.84,133.77,7.47551767]
[1750545609764,26.0,133.83,133.8,18.75318055]
[1750545609950,18.75318055,133.85,133.81,18.75318055]
[1750545610140,6.5183,133.89,133.83,18.75318055]
[1750545610331,44.75318055,133.84,133.77,115.26431186]
[1750545610537,44.75318055,133.84,133.79,19.47318055]
[1750545610861,44.75318055,133.84,133.8,18.75318055]
[1750545611039,44.75318055,133.84,133.81,7.47328301]
[1750545611554,26.0,133.84,133.81,7.47328301]
[1750545612277,44.75318055,133.84,133.81,7.47328301]
[1750545613040,26.0,133.84,133.8,7.47366069]
[1750545613249,26.0,133.84,133.8,26.22684124]
[1750545613768,26.0,133.84,133.8,26.96684124]
[1750545614763,18.75318055,133.82,133.77,26.96869822]
[1750545615055,44.75318055,133.82,133.77,26.96869822]
[1750545615358,26.0,133.82,133.77,7.47551767]
[1750545615553,44.75318055,133.82,133.78,18.75318055]
[1750545616260,18.75318055,133.81,133.77,26.96869822]
[1750545616460,18.75318055,133.81,133.77,26.22869822]
[1750545616768,18.75318055,133.79,133.76,7.47589824]
[1750545617058,26.0,133.8,133.77,19.49318055]
[1750545617461,34.33647579,133.85,133.78,18.75318055]
[1750545617462,8.2156,133.85,133.78,18.75318055]
[1750545617638,26.0,133.82,133.76,26.90608962]
[1750545617839,18.75318055,133.81,133.77,18.75318055]
[1750545618041,18.75318055,133.8,133.76,7.47589824]
[1750545618360,18.75318055,133.79,133.76,7.47589824]
[1750545618666,18.75318055,133.8,133.76,7.47589824]
[1750545619243,18.75318055,133.79,133.76,7.47589824]
[1750545619945,33.4727812,133.82,133.76,7.47589824]
[1750545619946,18.75318055,133.8,133.76,7.47589824]
[1750545620146,26.0,133.82,133.76,7.47589824]
[1750545620345,26.0,133.82,133.76,26.22907879]
[1750545620554,45.11233357,133.83,133.78,18.75318055]
[1750545620555,18.75318055,133.83,133.78,18.75318055]
[1750545620758,18.75318055,133.83,133.79,18.75318055]
[1750545620944,18.75318055,133.84,133.79,18.75318055]
[1750545621256,18.75318055,133.86,133.82,18.75318055]
[1750545621849,18.75318055,133.86,133.83,7.47216618]
[1750545622453,1.6145,133.89,133.84,18.75318055]
[1750545622966,18.75318055,133.88,133.84,18.75318055]
[1750545623264,18.75318055,133.88,133.83,7.47216618]
[1750545623451,18.75318055,133.88,133.83,26.22534673]
[1750545623651,1.6145,133.89,133.83,26.22534673]
[1750545623851,1.6145,133.89,133.83,7.47216618]
[1750545624070,1.6145,133.89,133.83,26.22534673]
[1750545624071,18.75318055,133.88,133.83,26.22534673]
[1750545624359,44.75318055,133.87,133.83,7.47216618]
[1750545624953,18.75318055,133.86,133.83,7.47216618]
[1750545625148,18.75318055,133.86,133.82,18.75318055]
[1750545625149,26.0,133.86,133.82,7.47262104]
[1750545626172,18.75318055,133.85,133.82,7.47262104]
[1750545627476,18.75318055,133.84,133.81,7.47328301]
[1750545627977,18.75318055,133.84,133.8,29.39318055]
[1750545627978,18.75318055,133.84,133.8,18.11366286]
[1750545628168,18.75318055,133.83,133.8,18.11366286]
[1750545628369,33.47064288,133.86,133.8,18.11366286]
[1750545628566,18.75318055,133.84,133.8,36.86684341]
[1750545629076,44.75318055,133.84,133.8,36.86684341]
[1750545630467,44.75318055,133.84,133.8,18.11366286]
[1750545630672,44.75318055,133.84,133.8,36.86684341]
[1750545630975,44.75318055,133.84,133.8,18.11366286]
[1750545631556,26.0,133.84,133.8,18.11366286]
[1750545631879,44.75318055,133.84,133.8,36.86684341]
[1750545632387,26.0,133.84,133.8,36.86684341]
[1750545634608,44.75318055,133.84,133.8,18.11366286]
[1750545635299,18.75318055,133.83,133.8,10.64]
[1750545635600,18.75318055,133.83,133.76,26.06747302]
[1750545635601,18.75318055,133.81,133.77,7.47551767]
[1750545635783,18.75318055,133.8,133.77,7.47551767]
[1750545635979,50.71602249,133.84,133.77,26.96869822]
[1750545635980,44.75318055,133.82,133.77,26.96869822]
[1750545636820,44.75318055,133.82,133.77,26.22869822]
[1750545637019,26.0,133.82,133.8,18.75318055]
[1750545637220,18.75318055,133.85,133.81,18.75318055]
[1750545637505,18.75318055,133.86,133.81,18.75318055]
[1750545637707,18.75318055,133.85,133.8,19.49318055]
[1750545638393,18.75318055,133.84,133.79,18.75318055]
[1750545638707,18.75318055,133.84,133.77,26.90431186]
[1750545639011,18.75318055,133.82,133.77,38.18197474]
[1750545639306,18.75318055,133.82,133.78,7.47495888]
[1750545639510,44.75318055,133.82,133.78,26.22813943]
[1750545641392,18.75318055,133.79,133.76,7.4757726]
[1750545642419,18.75318055,133.79,133.76,6.4757726]
[1750545642708,33.47305723,133.82,133.77,0.71]
[1750545642920,26.0,133.82,133.8,18.75318055]
[1750545643423,44.75318055,133.85,133.8,18.75318055]
[1750545643597,26.0,133.85,133.77,0.71]
[1750545643921,18.75318055,133.84,133.8,18.75318055]
[1750545644930,18.75318055,133.84,133.81,7.47328301]
[1750545646406,26.0,133.85,133.81,7.47328301]
[1750545646715,44.75318055,133.85,133.81,7.47328301]
[1750545646917,44.75318055,133.85,133.81,8.18328301]
[1750545649114,50.32414537,133.85,133.81,8.18328301]
[1750545649541,25.00414537,133.84,133.81,7.47328301]
[1750545649711,18.75318055,133.82,133.8,7.47372602]
[1750545650113,6.25096482,133.84,133.8,7.47372602]
[1750545650114,24.32414537,133.83,133.8,7.47372602]
[1750545650327,5.57096482,133.83,133.8,7.47372602]
[1750545650533,24.32414537,133.83,133.8,7.47372602]
[1750545650938,24.32414537,133.83,133.79,7.47440017]
[1750545651107,18.75318055,133.82,133.79,7.47440017]
[1750545651436,26.0,133.82,133.79,7.47440017]
[1750545651610,44.75318055,133.82,133.79,7.47440017]
[1750545652012,50.33997248,133.82,133.79,7.47440017]
[1750545652313,44.75318055,133.82,133.79,7.47440017]
[1750545652726,5.58803036,133.81,133.78,26.22813943]
[1750545652916,5.58803036,133.81,133.78,8.18495888]
[1750545654309,26.0,133.82,133.79,19.46318055]
[1750545654628,26.0,133.83,133.79,19.46318055]
[1750545655015,31.58661518,133.83,133.79,19.46318055]
[1750545655536,26.0,133.83,133.79,19.46318055]
[1750545655835,44.75318055,133.83,133.79,0.71]
[1750545656334,18.75318055,133.81,133.78,7.47495888]
[1750545656715,24.34102169,133.81,133.78,7.47495888]
[1750545657014,5.58781532,133.81,133.78,7.47495888]
[1750545657841,5.58781532,133.81,133.78,8.18495888]
[1750545658140,24.34099587,133.81,133.78,7.47495888]
[1750545658435,0.68,133.79,133.75,1.0773967]
[1750545658743,18.75318055,133.76,133.75,1.0773967]
[1750545659733,24.34218526,133.76,133.75,1.0773967]
[1750545660316,5.58900471,133.76,133.75,1.0773967]
[1750545660518,26.0,133.77,133.75,8.55403221]
[1750545660716,5.58900471,133.78,133.75,27.30721276]
[1750545660947,7.22360471,133.82,133.77,0.71]
[1750545661247,7.22360471,133.82,133.75,8.55403221]
[1750545661248,18.75318055,133.82,133.78,19.46318055]
[1750545661425,24.34218526,133.82,133.78,19.46318055]
[1750545661627,5.58900471,133.81,133.76,18.75318055]
[1750545661838,18.75318055,133.81,133.77,26.22869822]
[1750545662141,18.75318055,133.8,133.77,7.47551767]
[1750545662553,26.0,133.79,133.77,7.47551767]
[1750545662752,18.75318055,133.78,133.76,7.47590269]
[1750545663256,32.26492775,133.78,133.75,10.8973967]
[1750545663461,18.75318055,133.76,133.75,1.0773967]
[1750545663616,5.58492775,133.77,133.75,1.0773967]
[1750545663836,18.75318055,133.76,133.75,1.0773967]
[1750545664046,32.49418485,133.76,133.75,1.0773967]
[1750545664366,45.55890596,133.76,133.75,1.0773967]
[1750545664658,51.14383371,133.76,133.75,1.0773967]
[1750545665365,43.66775716,133.76,133.75,1.0773967]
[1750545666058,38.08282941,133.76,133.75,1.0773967]
[1750545666358,5.58492775,133.77,133.75,1.0773967]
[1750545666531,18.75318055,133.79,133.75,28.01695119]
[1750545666737,5.58492775,133.82,133.75,46.70853997]
[1750545666953,18.75318055,133.8,133.75,46.70853997]
[1750545667246,26.0,133.79,133.75,46.70853997]
[1750545667454,44.75318055,133.79,133.75,27.95535942]
[1750545667639,26.0,133.79,133.75,1.0773967]
[1750545667854,18.75318055,133.77,133.75,1.0773967]
[1750545668059,26.0,133.79,133.75,1.0773967]
[1750545668243,18.75318055,133.77,133.75,1.0773967]
[1750545668764,44.75318055,133.78,133.75,1.0773967]
[1750545669258,18.75318055,133.77,133.75,1.0773967]
[1750545671964,26.22880839,133.77,133.75,1.0773967]
[1750545672677,26.22880839,133.77,133.75,0.5773967]
[1750545673456,18.75318055,133.76,133.75,0.5773967]
[1750545673968,38.10282941,133.76,133.75,0.5773967]
[1750545674657,43.672768,133.76,133.75,0.5773967]
[1750545675680,51.14884455,133.76,133.75,0.5773967]
[1750545676448,51.14321345,133.76,133.75,0.5773967]
[1750545676954,92.32757935,133.76,133.75,0.5773967]
[1750545678548,26.0,133.73,133.72,5.17003355]
[1750545678785,18.75318055,133.73,133.72,5.17003355]
[1750545678981,19.45318055,133.73,133.72,5.17003355]
[1750545679160,38.10282941,133.73,133.72,5.17003355]
[1750545679365,69.6650696,133.73,133.72,5.17003355]
[1750545679564,77.14282328,133.73,133.72,5.17003355]
[1750545680490,18.75318055,133.73,133.72,5.17003355]
[1750545680679,68.63684241,133.75,133.72,5.17003355]
[1750545681067,18.75318055,133.73,133.72,5.17003355]
[1750545681987,52.23093423,133.73,133.72,5.17003355]
[1750545682189,71.58058309,133.73,133.72,5.17003355]
[1750545682374,106.02058309,133.73,133.72,5.17003355]
[1750545682691,79.89318055,133.73,133.72,5.17003355]
[1750545683189,18.75318055,133.73,133.72,5.17003355]
[1750545683369,35.08,133.77,133.72,12.64834644]
[1750545683576,26.0,133.77,133.72,13.33834644]
[1750545683769,18.75318055,133.74,133.72,13.33834644]
[1750545683986,18.75318055,133.75,133.72,13.33834644]
[1750545685304,18.75318055,133.74,133.72,5.17003355]
[1750545685789,33.47568957,133.77,133.72,5.17003355]
[1750545685980,18.75318055,133.74,133.72,5.17003355]
[1750545686386,18.75318055,133.73,133.72,5.17003355]
[1750545686600,18.75318055,133.74,133.72,12.64825021]
[1750545686781,44.75318055,133.76,133.72,31.40143076]
[1750545687103,6.2156,133.8,133.74,0.69]
[1750545687104,18.75318055,133.77,133.74,0.69]
[1750545687903,26.0,133.79,133.74,8.16681385]
[1750545688099,18.75318055,133.78,133.75,0.69]
[1750545688712,9.82,133.82,133.75,0.69]
[1750545688713,7.7352,133.84,133.75,0.69]
[1750545688873,18.75318055,133.82,133.77,18.75318055]
[1750545689078,18.75318055,133.81,133.78,0.69]
[1750545689287,18.75318055,133.81,133.78,0.19]
[1750545689486,18.75318055,133.81,133.76,18.75318055]
[1750545690310,18.75318055,133.81,133.77,7.47551767]
[1750545690808,18.75318055,133.81,133.77,26.22869822]
[1750545690990,18.75318055,133.81,133.77,7.47551767]
[1750545691300,18.75318055,133.81,133.77,8.16551767]
[1750545691687,18.67640378,133.86,133.77,8.16551767]
[1750545691688,23.83130674,133.87,133.77,7.47551767]
[1750545691887,18.75318055,133.84,133.8,18.75318055]
[1750545692089,44.75318055,133.84,133.8,0.69]
[1750545692288,44.75318055,133.84,133.81,7.47328301]
[1750545693383,26.0,133.84,133.81,8.16328301]
[1750545693703,18.75318055,133.86,133.82,19.44318055]
[1750545693909,26.0,133.86,133.82,0.69]
[1750545694210,18.75318055,133.86,133.82,0.69]
[1750545694396,44.75318055,133.86,133.82,0.69]
[1750545695692,18.75318055,133.85,133.82,7.4725565]
[1750545695888,18.75318055,133.84,133.82,7.4725565]
[1750545696098,18.75318055,133.84,133.8,7.47384155]
[1750545697296,34.17061124,133.86,133.8,7.47384155]
[1750545697495,18.75318055,133.82,133.79,7.47440017]
[1750545697688,18.75318055,133.8,133.75,16.2215]
[1750545697902,26.0,133.79,133.75,9.42]
[1750545698101,18.75318055,133.78,133.75,16.89643157]
[1750545698307,26.0,133.79,133.75,16.89643157]
[1750545698614,18.75318055,133.78,133.75,16.89643157]
[1750545699717,26.0,133.79,133.72,5.86003355]
[1750545699718,18.75318055,133.76,133.72,5.86003355]
[1750545699921,18.75318055,133.75,133.73,7.47733684]
[1750545700294,18.75318055,133.75,133.72,12.64822858]
[1750545700807,18.75318055,133.74,133.72,12.64822858]
[1750545701004,26.0,133.75,133.72,5.17003355]
[1750545701316,44.75318055,133.75,133.72,12.64832102]
[1750545701523,18.75318055,133.74,133.72,12.64832102]
[1750545701885,5.56177928,133.76,133.72,5.17003355]
[1750545702198,18.75318055,133.76,133.72,23.9232141]
[1750545702602,18.75318055,133.76,133.72,5.17003355]
[1750545702789,18.75318055,133.76,133.72,24.6232141]
[1750545703203,26.0,133.77,133.73,18.75318055]
[1750545703393,26.0,133.77,133.73,19.45318055]
[1750545703725,18.75318055,133.78,133.74,0.7]
[1750545704017,18.75318055,133.77,133.72,50.7971404]
[1750545704384,18.75318055,133.77,133.72,32.10135817]
[1750545704591,18.75318055,133.76,133.72,31.40135817]
[1750545705216,18.75318055,133.77,133.72,32.10135817]
[1750545706291,44.75318055,133.78,133.73,19.45318055]
[1750545707201,44.75318055,133.78,133.74,7.47719455]
[1750545707409,44.75318055,133.78,133.74,8.17719455]
[1750545707726,44.75318055,133.78,133.74,7.47719455]
[1750545708400,18.75318055,133.77,133.74,7.47719455]
[1750545708811,18.75318055,133.77,133.73,7.47775368]
[1750545709016,18.75318055,133.77,133.73,26.23093423]
[1750545709514,18.75318055,133.77,133.73,26.93093423]
[1750545710118,26.0,133.78,133.74,19.45318055]
[1750545710322,18.75318055,133.79,133.75,0.7]
[1750545710519,44.75318055,133.8,133.75,19.45318055]
[1750545710823,26.0,133.8,133.76,18.75318055]
[1750545711002,26.0,133.8,133.76,19.45318055]
[1750545711732,18.75318055,133.81,133.76,19.45318055]
[1750545711909,18.75318055,133.8,133.76,19.45318055]
[1750545712225,18.75318055,133.8,133.77,7.47551767]
[1750545713943,26.0,133.82,133.77,26.92869822]
[1750545714231,18.75318055,133.8,133.77,7.47551767]
[1750545714906,26.0,133.82,133.77,7.47551767]
[1750545715323,18.75318055,133.81,133.77,8.17551767]
[1750545715837,26.0,133.82,133.77,116.02869822]
[1750545716025,18.75318055,133.81,133.77,116.02869822]
[1750545717635,26.0,133.82,133.77,116.02869822]
[1750545717816,44.75318055,133.82,133.78,0.7]
[1750545718429,18.75318055,133.81,133.78,0.7]
[1750545718917,26.0,133.82,133.79,7.47440017]
[1750545719114,44.75318055,133.82,133.79,7.47440017]
[1750545719322,44.75318055,133.82,133.79,8.17440017]
[1750545719527,26.0,133.82,133.79,8.17440017]
[1750545720422,44.75318055,133.82,133.79,7.47440017]
[1750545720938,19.45318055,133.8,133.75,26.92981606]
[1750545721656,26.0,133.83,133.78,19.45318055]
[1750545721943,19.45318055,133.88,133.82,18.75318055]
[1750545722118,0.7,133.88,133.81,19.34964886]
[1750545722320,45.45318055,133.88,133.84,7.47160789]
[1750545723046,42.3651,133.91,133.86,18.75318055]
[1750545723047,1.6187,133.91,133.86,18.75318055]
[1750545723235,0.7,133.92,133.87,18.75318055]
[1750545723438,18.75318055,133.91,133.87,18.75318055]
[1750545723744,18.75318055,133.91,133.86,18.75318055]
[1750545723950,18.75318055,133.9,133.85,18.75318055]
[1750545724261,18.75318055,133.88,133.84,7.47160789]
[1750545724438,18.75318055,133.87,133.83,9.0]
[1750545724640,18.75318055,133.85,133.8,9.69037275]
[1750545724958,18.75318055,133.83,133.79,32.52487267]
[1750545725158,18.75318055,133.8,133.77,9.0]
[1750545725462,18.75318055,133.78,133.73,20.97278055]
[1750545725626,32.802,133.82,133.74,18.75318055]
[1750545725834,18.75318055,133.8,133.75,18.75318055]
[1750545726056,18.75318055,133.79,133.74,18.75318055]
[1750545726427,18.75318055,133.79,133.74,26.9300789]
[1750545726955,7.47368059,133.81,133.74,26.9300789]
[1750545727139,18.75318055,133.79,133.74,8.17689835]
[1750545727327,18.75318055,133.79,133.74,26.9300789]
[1750545727528,18.75318055,133.78,133.74,26.9300789]
[1750545727738,18.75318055,133.78,133.74,7.47689835]
[1750545727942,18.75318055,133.78,133.74,26.2300789]
[1750545728228,18.75318055,133.79,133.74,26.9300789]
[1750545729126,18.75318055,133.78,133.74,26.9300789]
[1750545729628,18.75318055,133.79,133.74,26.9300789]
[1750545730933,18.75318055,133.78,133.74,18.75318055]
[1750545731352,18.75318055,133.79,133.74,18.75318055]
[1750545731658,18.75318055,133.8,133.76,19.45318055]
[1750545731950,26.0,133.82,133.76,19.45318055]
[1750545732157,18.75318055,133.8,133.76,19.45318055]
[1750545732535,26.0,133.82,133.76,18.75318055]
[1750545732739,18.75318055,133.82,133.78,19.45318055]
[1750545733046,18.75318055,133.83,133.79,26.22758072]
[1750545733228,18.75318055,133.83,133.79,7.47440017]
[1750545734759,44.75318055,133.84,133.8,0.7]
[1750545734940,0.7,133.86,133.8,108.55318055]
[1750545735259,18.75318055,133.84,133.8,89.1]
[1750545735632,18.75318055,133.84,133.8,107.85318055]
[1750545736034,18.75318055,133.84,133.8,89.1]
[1750545736363,18.75318055,133.83,133.8,89.1]
[1750545736663,18.75318055,133.84,133.8,89.1]
[1750545737456,18.75318055,133.84,133.8,96.57328362]
[1750545737661,18.75318055,133.83,133.8,96.57328362]
[1750545737865,18.75318055,133.84,133.8,96.57328362]
[1750545738047,18.75318055,133.84,133.8,116.02646417]
[1750545739768,18.75318055,133.84,133.8,97.27328362]
[1750545740239,32.26520458,133.86,133.8,97.27328362]
[1750545740442,18.75318055,133.84,133.8,97.27328362]
[1750545741053,18.75318055,133.84,133.8,96.57328362]
[1750545741260,18.75318055,133.81,133.8,89.1]
[1750545741576,18.75318055,133.82,133.8,89.1]
[1750545742064,26.0,133.83,133.8,96.57359761]
[1750545742366,18.75318055,133.84,133.8,97.27359761]
[1750545742958,18.75318055,133.84,133.81,0.7]
[1750545743152,44.75318055,133.85,133.81,19.45318055]
[1750545743356,18.75318055,133.88,133.84,19.45318055]
[1750545743664,18.75318055,133.91,133.87,0.7]
[1750545743864,18.75318055,133.88,133.85,7.47104968]
[1750545744169,18.75318055,133.87,133.85,7.47104968]
[1750545744465,18.75318055,133.88,133.85,7.47104968]
[1750545744704,0.7,133.89,133.85,7.47104968]
[1750545744918,18.75318055,133.88,133.85,7.47104968]
[1750545745196,18.75318055,133.88,133.84,7.47160789]
[1750545745745,18.75318055,133.86,133.84,7.47160789]
[1750545745942,18.75318055,133.87,133.84,7.47160789]
[1750545746758,18.75318055,133.85,133.83,7.47206597]
[1750545746957,44.75318055,133.86,133.82,7.47272455]
[1750545747187,18.75318055,133.85,133.82,7.47272455]
[1750545747371,44.75318055,133.85,133.82,7.47272455]
[1750545749382,26.0,133.85,133.81,7.47328301]
[1750545749580,44.75318055,133.85,133.81,7.47328301]
[1750545750089,44.75318055,133.87,133.82,19.45318055]
[1750545750384,18.75318055,133.86,133.81,44.90967109]
[1750545750596,18.75318055,133.85,133.82,89.1]
[1750545751578,18.75318055,133.85,133.82,96.57257899]
[1750545751763,18.75318055,133.84,133.82,96.57257899]
[1750545753085,18.75318055,133.85,133.82,96.57257899]
[1750545756796,11.27129857,133.83,133.81,7.47315412]
[1750545758483,11.27129857,133.83,133.8,96.57371955]
[1750545758785,11.97129857,133.83,133.8,7.47371955]
[1750545758976,11.27129857,133.83,133.8,7.47371955]
[1750545759179,11.97129857,133.83,133.8,7.47371955]
[1750545759379,11.27129857,133.83,133.8,7.47371955]
[1750545759820,26.0,133.84,133.79,96.57416943]
[1750545759821,11.27129857,133.81,133.79,96.57416943]
[1750545760106,11.27129857,133.81,133.78,16.11482896]
[1750545761505,39.73910651,133.84,133.78,16.79482896]
[1750545761506,11.27129857,133.82,133.78,16.79482896]
[1750545763301,11.27129857,133.82,133.78,28.06612753]
[1750545763992,11.27129857,133.82,133.78,16.79482896]
[1750545764519,11.27129857,133.81,133.78,16.79482896]
[1750545765412,11.27129857,133.81,133.78,105.89482896]
[1750545765612,11.27129857,133.81,133.78,105.21482896]
[1750545765816,13.7696267,133.83,133.78,105.21482896]
[1750545765817,11.27129857,133.8,133.78,105.21482896]
[1750545766118,11.27129857,133.79,133.77,7.47538423]
[1750545766412,11.27129857,133.81,133.77,18.7466828]
[1750545766707,11.27129857,133.81,133.77,108.5266828]
[1750545768906,11.27129857,133.82,133.78,11.27129857]
[1750545769114,11.27129857,133.82,133.78,11.95129857]
[1750545769633,11.27129857,133.81,133.78,0.68]
[1750545771127,11.27129857,133.81,133.79,7.47440017]
[1750545771641,11.27129857,133.8,133.78,7.47476035]
[1750545772117,11.27129857,133.8,133.77,7.4754217]
[1750545773451,11.27129857,133.78,133.76,8.26]
[1750545773638,11.27129857,133.77,133.72,12.64827128]
[1750545773813,11.27129857,133.75,133.72,12.64827128]
[1750545774814,12.00129857,133.76,133.72,12.64827128]
[1750545775631,11.27129857,133.77,133.73,0.68]
[1750545776012,11.27129857,133.76,133.72,13.32827128]
[1750545776244,11.27129857,133.76,133.72,24.59956985]
[1750545777041,11.27129857,133.76,133.72,113.69956985]
[1750545777336,11.27129857,133.76,133.72,102.42827128]
[1750545777541,11.27129857,133.76,133.72,113.01956985]
[1750545777712,11.27129857,133.76,133.73,0.68]
[1750545778117,11.27129857,133.77,133.73,0.68]
[1750545778438,11.27129857,133.78,133.74,11.27129857]
[1750545778642,5.56745584,133.79,133.75,0.68]
[1750545778643,11.27129857,133.79,133.75,0.68]
[1750545778930,11.27129857,133.79,133.75,89.78]
[1750545779544,11.27129857,133.79,133.76,7.47607655]
[1750545780722,11.27129857,133.78,133.75,96.57643087]
[1750545780921,11.27129857,133.78,133.75,89.1]
[1750545780922,11.27129857,133.77,133.75,89.1]
[1750545781125,12.00129857,133.76,133.72,94.27003355]
[1750545781343,11.27129857,133.74,133.72,5.17003355]
[1750545781723,0.73,133.76,133.72,5.17003355]
[1750545781724,12.00129857,133.73,133.72,5.17003355]
[1750545782335,30.65094743,133.73,133.72,5.17003355]
[1750545783317,67.78060391,133.73,133.72,5.17003355]
[1750545784209,75.25835759,133.73,133.72,5.17003355]
[1750545784515,37.12965648,133.73,133.72,5.17003355]
[1750545784685,1.5968,133.75,133.72,12.64820788]
[1750545784879,52.69964886,133.78,133.72,12.64820788]
[1750545784880,11.27129857,133.77,133.72,23.91950645]
[1750545785082,0.73,133.78,133.72,24.59950645]
[1750545785280,11.27129857,133.76,133.72,13.32820788]
[1750545785603,13.03298301,133.78,133.72,12.64820788]
[1750545785803,11.27129857,133.74,133.72,12.64820788]
[1750545786400,11.27129857,133.73,133.72,5.17003355]
[1750545786806,18.81275208,133.73,133.72,5.17003355]
[1750545787913,8.20627602,133.76,133.72,5.17003355]
[1750545788118,18.81275208,133.73,133.72,5.17003355]
[1750545789505,18.81275208,133.74,133.72,5.17003355]
[1750545790011,18.81275208,133.74,133.72,12.6483261]
[1750545794011,18.81275208,133.75,133.72,13.3683261]
[1750545794319,35.07134793,133.79,133.72,12.6483261]
[1750545794495,0.68,133.76,133.72,94.27003355]
[1750545794803,18.81275208,133.74,133.72,12.64833924]
[1750545795407,24.20624439,133.78,133.72,12.64833924]
[1750545795706,24.20624439,133.78,133.72,13.36833924]
[1750545795707,5.55781816,133.78,133.72,13.36833924]
[1750545795903,28.2768,133.79,133.72,13.36833924]
[1750545796213,18.81275208,133.77,133.73,0.72]
[1750545796403,18.81275208,133.76,133.73,0.72]
[1750545796607,18.81275208,133.76,133.73,89.82]
[1750545797917,18.81275208,133.77,133.74,8.19719455]
[1750545798297,1.5968,133.79,133.74,27.00994663]
[1750545798497,2.1922,133.82,133.74,115.99018094]
[1750545798706,18.81275208,133.8,133.74,115.99018094]
[1750545798905,18.81275208,133.8,133.75,3.19302496]
[1750545799214,2.1922,133.82,133.77,18.81275208]
[1750545799215,18.81275208,133.81,133.77,18.81275208]
[1750545799807,18.81275208,133.81,133.78,7.47495888]
[1750545800012,18.81275208,133.82,133.78,7.47495888]
[1750545800213,18.81275208,133.82,133.78,26.28771096]
[1750545800413,18.81275208,133.81,133.77,26.28811409]
[1750545800720,18.81275208,133.82,133.77,26.28811409]
[1750545800900,18.81275208,133.82,133.77,27.00811409]
[1750545801100,18.81275208,133.81,133.77,27.00811409]
[1750545802220,18.81275208,133.78,133.75,26.0]
[1750545802605,18.81275208,133.79,133.75,26.0]
[1750545803010,18.81275208,133.78,133.75,26.0]
[1750545803922,18.81275208,133.78,133.74,16.47702654]
[1750545804110,18.81275208,133.78,133.74,15.75702654]
[1750545804420,0.68,133.74,133.72,5.17003355]
[1750545804620,52.11275208,133.73,133.66,7.48125817]
[1750545804821,18.81275208,133.69,133.66,7.48125817]
[1750545805000,18.81275208,133.7,133.66,34.20125817]
[1750545805710,18.81275208,133.69,133.66,8.20125817]
[1750545805911,18.81275208,133.69,133.66,7.48125817]
[1750545806126,18.81275208,133.69,133.66,33.48125817]
[1750545806717,18.81275208,133.69,133.66,26.0]
[1750545807527,18.81275208,133.67,133.62,27.09275208]
[1750545807826,0.68,133.69,133.62,27.09275208]
[1750545807827,18.81275208,133.65,133.62,8.28]
[1750545808128,18.81275208,133.64,133.62,8.28]
[1750545808901,33.24,133.68,133.62,8.28]
[1750545809101,18.81275208,133.64,133.62,8.28]
[1750545810633,18.81275208,133.64,133.61,122.50266505]
[1750545811624,7.48111019,133.67,133.61,141.31541713]
[1750545811835,18.81275208,133.65,133.61,142.03541713]
[1750545812330,18.81275208,133.65,133.61,123.22266505]
[1750545813046,18.81275208,133.64,133.61,123.22266505]
[1750545813528,18.81275208,133.65,133.61,142.03541713]
[1750545813945,18.81275208,133.64,133.61,123.22266505]
[1750545814524,1.5643,133.7,133.64,18.64964886]
[1750545814731,18.88400249,133.73,133.68,19.53275208]
[1750545814937,18.88400249,133.73,133.7,0.72]
[1750545815134,30.21886103,133.73,133.69,6.3466]
[1750545815318,30.21886103,133.73,133.68,107.91275208]
[1750545815319,18.81275208,133.71,133.68,89.1]
[1750545817031,26.29164197,133.71,133.68,89.1]
[1750545818019,18.81275208,133.7,133.68,89.1]
[1750545818221,18.81275208,133.7,133.67,26.0]
[1750545819032,18.81275208,133.69,133.67,26.0]
[1750545820017,18.81275208,133.69,133.65,107.74964886]
[1750545820219,18.81275208,133.68,133.65,89.1]
[1750545821905,18.81275208,133.67,133.65,89.1]